bitfinex/quotes_ETHUSD_20240828
["timestamp","ask_amount","ask_price","bid_price","bid_amount"]
[1724860665632,4.0013,2499.2,2498.9,0.09971341]
[1724860665968,4.0013,2499.2,2499.0,0.09962874]
[1724860666122,4.0013,2499.2,2498.7,7.36145512]
[1724860666459,4.0013,2499.2,2499.1,0.09954408]
[1724860666664,8.00267,2499.2,2498.7,6.43682]
[1724860666820,8.00272,2499.2,2499.1,0.09954408]
[1724860667022,4.00161,2499.0,2498.7,2.4348]
[1724860668252,8.00273,2499.2,2498.7,2.4348]
[1724860668471,4.0013,2499.2,2498.7,6.43687]
[1724860668628,8.00269,2499.2,2498.7,2.4348]
[1724860668835,4.00145,2499.1,2498.7,2.4348]
[1724860669140,4.0013,2499.2,2498.7,2.4348]
[1724860669347,5.59,2499.5,2498.9,3.9924026]
[1724860669533,5.59,2499.5,2499.2,4.00127]
[1724860669737,5.59,2499.5,2499.3,4.00102]
[1724860669986,5.59,2499.5,2499.2,4.00127]
[1724860670148,5.59,2499.5,2499.3,0.65520873]
[1724860670682,5.59,2499.5,2499.3,4.65629873]
[1724860671300,5.59,2499.5,2499.4,4.00096]
[1724860671458,5.59,2499.5,2499.3,4.65629873]
[1724860671627,5.59,2499.5,2499.4,0.46562987]
[1724860672386,5.59,2499.5,2499.3,0.65520873]
[1724860672534,5.59,2499.5,2499.1,2.4708]
[1724860673885,9.59082,2499.5,2499.1,2.4708]
[1724860675187,5.59,2499.5,2499.2,4.00126]
[1724860675577,5.59,2499.5,2499.2,4.00118]
[1724860676406,5.59,2499.5,2499.1,3.573207]
[1724860676576,5.59,2499.5,2499.1,7.574627]
[1724860677287,5.59,2499.5,2498.8,13.686]
[1724860677696,4.00104,2499.4,2498.9,4.00161]
[1724860678007,4.00104,2499.4,2498.9,4.00014968]
[1724860678398,5.59,2499.5,2499.0,4.00145]
[1724860678591,5.59,2499.5,2499.0,4.55145]
[1724860678910,5.59,2499.5,2499.1,6.46951]
[1724860679092,5.59,2499.5,2499.4,4.00096]
[1724860679301,5.59,2499.5,2499.4,4.401056]
[1724860679481,5.59,2499.5,2499.4,11.420116]
[1724860680672,5.59,2499.5,2499.4,3.1172618]
[1724860680882,5.59,2499.5,2499.4,2.5672618]
[1724860681109,5.59,2499.5,2499.4,6.5682218]
[1724860682627,5.59,2499.5,2499.4,10.5691818]
[1724860682788,5.59,2499.5,2499.4,11.1191818]
[1724860683131,5.59,2499.5,2499.4,17.03142324]
[1724860684310,2.4625,2500.9,2499.9,2.413]
[1724860684628,7.46631684,2501.3,2500.6,2.413]
[1724860684629,3.99833,2501.1,2500.6,2.413]
[1724860684829,6.4605,2501.3,2500.6,6.41193]
[1724860684982,3.99808,2501.2,2500.7,0.09799489]
[1724860685182,11.10461,2501.3,2500.7,0.09799489]
[1724860685819,0.1228994,2501.8,2500.7,0.09799489]
[1724860686001,0.1228994,2501.8,2501.3,3.99791]
[1724860686221,0.1228994,2501.8,2501.4,3.99774]
[1724860686383,0.1228994,2501.8,2501.4,4.54774]
[1724860686588,0.1228994,2501.8,2501.4,4.6441902]
[1724860686895,4.1200694,2501.8,2501.4,0.0964502]
[1724860687080,3.99728,2501.7,2501.2,2.413]
[1724860687480,4.1200694,2501.8,2501.3,0.09614403]
[1724860687854,4.1200694,2501.8,2500.8,2.2504]
[1724860687855,3.99779,2501.4,2500.8,2.2504]
[1724860688119,0.399779,2501.3,2500.9,0.55]
[1724860688331,3.99779,2501.4,2500.9,0.55]
[1724860688632,3.99779,2501.4,2500.8,2.2504]
[1724860688633,3.99794,2501.3,2500.8,2.2504]
[1724860688849,1.029613,2501.3,2500.8,2.2504]
[1724860689121,3.78240634,2501.8,2501.1,3.9924026]
[1724860689122,7.1200994,2501.8,2501.1,3.9924026]
[1724860689336,4.1200994,2501.8,2501.1,7.9905126]
[1724860689539,3.99761,2501.5,2501.0,2.2504]
[1724860689681,0.1228994,2501.8,2501.4,7.9900326]
[1724860689885,0.1228994,2501.8,2501.5,2.3928]
[1724860690992,0.1228994,2501.8,2501.3,3.99779]
[1724860691196,0.1228994,2501.8,2501.4,0.55]
[1724860691616,0.1228994,2501.8,2501.5,6.29489]
[1724860691800,0.1228994,2501.8,2501.6,0.69248384]
[1724860692401,0.1228994,2501.8,2501.5,6.29489]
[1724860692837,0.1228994,2501.8,2501.7,3.99728]
[1724860693129,0.1228994,2501.8,2501.7,4.54728]
[1724860693283,0.1228994,2501.8,2501.7,4.62721674]
[1724860693487,0.1228994,2501.8,2501.7,8.62449674]
[1724860693689,0.1228994,2501.8,2501.7,10.70242773]
[1724860694170,0.1228994,2501.8,2501.7,13.11272773]
[1724860694557,0.1228994,2501.8,2501.5,3.99753]
[1724860694761,0.1228994,2501.8,2501.6,3.99742]
[1724860695780,0.1228994,2501.8,2501.7,0.09420077]
[1724860696183,0.1228994,2501.8,2501.7,4.09148077]
[1724860696683,0.1228994,2501.8,2501.7,0.09420077]
[1724860697095,0.1228994,2501.8,2501.7,7.99456]
[1724860697247,0.1228994,2501.8,2501.7,9.51824876]
[1724860697453,0.1228994,2501.8,2501.7,0.09429835]
[1724860697663,0.1228994,2501.8,2501.7,4.09157835]
[1724860698012,0.1228994,2501.8,2501.7,7.03580855]
[1724860698311,0.1228994,2501.8,2501.7,11.03308855]
[1724860698667,0.1228994,2501.8,2501.7,18.03036855]
[1724860698863,0.1228994,2501.8,2501.7,20.72863442]
[1724860699063,7.84232433,2503.0,2502.3,3.99624]
[1724860699263,3.84698433,2503.0,2502.4,0.55]
[1724860699583,4.63117376,2503.0,2502.4,0.64368276]
[1724860700404,0.44943942,2503.4,2502.7,2.3143]
[1724860700405,3.99465,2503.4,2502.7,2.3143]
[1724860700711,3.99505,2503.1,2502.7,2.3143]
[1724860700895,6.28018,2503.6,2502.7,2.3143]
[1724860700896,3.99447,2503.5,2502.9,3.99523]
[1724860701204,3.99447,2503.5,2502.8,4.63885509]
[1724860701205,4.622298,2503.6,2503.0,4.08808359]
[1724860701420,4.622298,2503.6,2503.1,0.55]
[1724860701707,3.99399,2503.8,2503.2,6.38897349]
[1724860701868,3.99399,2503.8,2503.2,10.38375349]
[1724860702064,3.9937,2504.0,2503.3,0.6425329]
[1724860702266,3.9937,2504.0,2503.4,3.99447]
[1724860702505,4.62166,2504.0,2503.5,3.99437]
[1724860702818,4.62166,2504.0,2503.5,0.09236417]
[1724860703110,3.9937,2504.0,2503.6,2.2843]
[1724860703405,3.9937,2504.0,2503.7,0.09219547]
[1724860704105,3.99336,2504.2,2503.7,0.09219547]
[1724860704411,3.99336,2504.2,2503.8,0.55]
[1724860704609,3.99345,2504.1,2503.8,0.64168453]
[1724860704901,3.99329,2504.2,2503.8,0.64168453]
[1724860705521,0.1228994,2504.3,2503.8,0.64168453]
[1724860705522,3.99376,2503.9,2503.8,0.09168453]
[1724860705822,3.99463,2503.4,2502.9,6.49235]
[1724860705990,3.99463,2503.4,2502.9,6.49232]
[1724860706187,3.99463,2503.4,2502.9,2.4971]
[1724860706188,3.99483,2503.3,2502.9,2.4971]
[1724860706404,3.9949,2503.2,2502.9,2.4971]
[1724860706608,3.99505,2503.1,2502.7,7.3]
[1724860706800,3.9949,2503.2,2502.7,7.3]
[1724860707312,3.99516,2503.1,2502.7,7.3]
[1724860707515,3.99537,2502.9,2502.7,7.3]
[1724860707676,7.99086,2502.9,2502.7,7.3]
[1724860707881,3.99552,2502.8,2502.7,7.3]
[1724860708075,3.99555,2502.8,2502.3,9.6787]
[1724860708313,3.99568,2502.7,2502.3,9.6787]
[1724860708987,3.99591,2502.6,2502.0,25.86429]
[1724860709193,3.99561,2502.8,2502.1,3.99662]
[1724860709377,3.99528,2503.0,2502.3,3.9962]
[1724860709713,3.99553,2502.8,2502.3,3.9962]
[1724860710372,0.636768,2502.9,2502.3,7.99241]
[1724860710574,0.636768,2502.9,2502.4,0.64187216]
[1724860711479,3.99528,2503.0,2502.4,0.64187216]
[1724860711678,3.99554,2502.8,2502.4,0.64187216]
[1724860711873,3.99528,2503.0,2502.4,0.64187216]
[1724860712503,3.99498,2503.2,2502.5,2.3543]
[1724860712725,3.99548,2502.9,2502.5,2.3543]
[1724860712909,3.99548,2502.9,2502.6,0.09170331]
[1724860713232,3.99564,2502.8,2502.6,0.09170331]
[1724860713436,3.99564,2502.8,2502.4,7.3]
[1724860713634,4.794461,2502.9,2502.7,0.09161889]
[1724860713862,3.99538,2502.9,2502.4,7.3]
[1724860714129,3.99533,2503.0,2502.4,7.3]
[1724860714130,3.99533,2503.0,2502.8,0.09153449]
[1724860714332,3.99533,2503.0,2502.5,4.62580836]
[1724860714543,8.78972,2503.0,2502.9,0.09145008]
[1724860714842,7.99125,2502.8,2502.4,7.3]
[1724860715138,3.99585,2502.6,2502.4,7.3]
[1724860715436,3.99569,2502.7,2502.1,18.64015]
[1724860715637,3.99562,2502.8,2502.2,8.54283]
[1724860715811,7.99124,2502.8,2502.2,4.62629633]
[1724860716008,3.99584,2502.6,2502.2,0.62991633]
[1724860716221,3.99584,2502.6,2502.2,0.55]
[1724860716737,0.799124,2502.7,2502.0,11.29666]
[1724860716738,3.99617,2502.4,2502.0,7.3]
[1724860716924,3.99617,2502.4,2501.8,5.3336]
[1724860716925,3.99665,2502.1,2501.8,2.3336]
[1724860717126,7.99314,2502.2,2501.8,2.3336]
[1724860717317,4.795874,2502.2,2501.8,2.3336]
[1724860717625,3.99705,2501.9,2501.6,7.3]
[1724860717806,3.99728,2501.7,2501.6,7.3]
[1724860718003,3.99728,2501.7,2501.3,2.3336]
[1724860718004,0.399728,2501.7,2501.3,2.3336]
[1724860718203,5.3294,2502.4,2501.4,4.07769239]
[1724860718204,3.99697,2501.9,2501.4,4.07769239]
[1724860718443,3.9968,2502.0,2501.5,3.99751]
[1724860718646,3.99653,2502.2,2501.6,3.99736]
[1724860718811,3.99653,2502.2,2501.6,3.99735]
[1724860719012,3.9968,2502.0,2501.5,1.1208221]
[1724860719230,3.997,2501.9,2501.5,0.07994186]
[1724860719428,3.9968,2502.0,2501.5,0.07994186]
[1724860719632,3.99715,2501.8,2501.3,6.33146]
[1724860719817,7.99437,2501.8,2501.3,6.33146]
[1724860720021,3.99715,2501.8,2501.3,6.33146]
[1724860720208,3.99715,2501.8,2501.3,6.41140668]
[1724860720410,7.99377,2502.0,2501.4,3.99775]
[1724860720646,3.99688,2502.0,2501.4,4.07769659]
[1724860720845,3.99682,2502.0,2501.5,5.36871173]
[1724860721055,3.99657,2502.2,2501.7,2.2766]
[1724860721348,3.99684,2502.0,2501.7,2.2766]
[1724860721657,3.99684,2502.0,2501.4,3.99774]
[1724860721940,7.99379,2502.0,2501.5,0.55]
[1724860722149,7.99373,2502.0,2501.5,4.54759]
[1724860722507,3.99684,2502.0,2501.5,8.62512244]
[1724860722707,3.99664,2502.1,2501.5,4.62753244]
[1724860722953,3.9968,2502.0,2501.5,5.79238025]
[1724860723124,3.9968,2502.0,2501.5,4.54759]
[1724860723507,7.99372,2502.0,2501.5,4.54759]
[1724860723843,7.99372,2502.0,2501.3,2.4482]
[1724860723844,3.9973,2501.7,2501.3,2.4482]
[1724860724513,4.796322,2502.0,2501.3,2.4482]
[1724860724715,3.99713,2501.8,2501.3,6.44601]
[1724860725133,3.99713,2501.8,2501.3,2.4482]
[1724860725445,3.99691,2502.0,2501.4,0.09402129]
[1724860725647,3.99691,2502.0,2501.4,0.89824342]
[1724860725848,3.99657,2502.2,2501.6,3.99734]
[1724860726019,3.99643,2502.3,2501.6,3.99734]
[1724860726020,3.99643,2502.3,2501.7,3.07813628]
[1724860726226,3.99649,2502.2,2501.7,7.1691063]
[1724860726426,3.99666,2502.1,2501.7,3.09198002]
[1724860726615,7.99342,2502.1,2501.7,3.09198002]
[1724860727014,3.99681,2502.0,2501.7,3.09198002]
[1724860727761,3.99666,2502.1,2501.7,3.09198002]
[1724860727932,7.99342,2502.1,2501.7,3.09198002]
[1724860728138,3.99666,2502.1,2501.7,3.09198002]
[1724860728307,3.99666,2502.1,2501.7,3.17191626]
[1724860728511,3.99648,2502.2,2501.7,7.91640237]
[1724860728707,3.99643,2502.3,2501.8,3.99711]
[1724860728914,3.99659,2502.2,2501.7,3.91914236]
[1724860729149,3.99659,2502.2,2501.9,0.094044]
[1724860729357,3.99659,2502.2,2501.8,0.09412847]
[1724860729513,3.99659,2502.2,2502.0,0.09395954]
[1724860729716,3.99659,2502.2,2501.9,0.094044]
[1724860729914,3.99659,2502.2,2502.1,0.09378969]
[1724860730347,3.99664,2502.1,2501.7,3.07813623]
[1724860730618,3.99649,2502.2,2501.7,7.07539623]
[1724860731132,3.99611,2502.5,2501.9,3.99695]
[1724860731338,7.99223,2502.5,2502.0,4.62666624]
[1724860731525,7.99223,2502.5,2501.7,4.10547062]
[1724860731526,3.9968,2502.0,2501.7,2.9982]
[1724860731727,2.2616,2502.7,2501.7,2.9982]
[1724860731728,3.99665,2502.1,2501.7,2.9982]
[1724860732016,7.99338,2502.1,2501.7,2.9982]
[1724860732219,3.99665,2502.1,2501.7,2.4482]
[1724860732933,3.99665,2502.1,2501.7,3.092764]
[1724860733253,3.99634,2502.3,2501.8,4.54708]
[1724860733560,3.99588,2502.6,2502.1,3.99651]
[1724860733769,3.99579,2502.7,2502.2,1.02957303]
[1724860734648,3.99579,2502.7,2502.3,2.3002]
[1724860735064,3.99556,2502.8,2502.3,6.2965]
[1724860736153,7.99095,2502.9,2502.3,6.37641875]
[1724860736362,3.99545,2502.9,2502.4,0.55]
[1724860736531,3.99545,2502.9,2502.4,4.54615]
[1724860736732,7.99095,2502.9,2502.4,0.55]
[1724860737130,3.9957,2502.7,2502.3,2.3002]
[1724860737447,3.99587,2502.6,2502.3,2.3002]
[1724860737654,3.9957,2502.7,2502.3,2.3002]
[1724860738760,4.794545,2502.9,2502.4,8.07206996]
[1724860738761,3.99539,2502.9,2502.4,8.07206996]
[1724860739021,3.99539,2502.9,2502.5,0.55]
[1724860739173,7.99085,2502.9,2502.5,0.55]
[1724860739768,3.99539,2502.9,2502.5,0.55]
[1724860739970,7.99027,2503.1,2502.5,0.55]
[1724860740139,8.7297815,2503.1,2502.5,4.54599]
[1724860740327,3.99513,2503.1,2502.5,4.62590147]
[1724860740528,3.99513,2503.1,2502.6,0.0927333]
[1724860740729,7.99028,2503.1,2502.7,2.4935]
[1724860741032,3.99513,2503.1,2502.8,0.09256448]
[1724860741327,3.99513,2503.1,2502.7,6.48918]
[1724860741540,3.99482,2503.3,2502.9,0.09248008]
[1724860741742,3.99502,2503.2,2502.8,0.09256448]
[1724860741963,8.389172,2503.3,2503.0,0.09239568]
[1724860742161,3.99482,2503.3,2502.9,0.09248008]
[1724860742365,3.99482,2503.3,2503.1,0.09231129]
[1724860742671,3.99494,2503.2,2502.7,6.48908]
[1724860742885,3.99454,2503.5,2503.0,3.99517]
[1724860743244,3.99432,2503.6,2503.2,2.4679]
[1724860743449,3.99432,2503.6,2503.2,2.71469]
[1724860743669,3.99442,2503.5,2503.2,2.4679]
[1724860744183,3.99432,2503.6,2503.2,2.4679]
[1724860744492,3.99517,2503.1,2502.9,2.4122]
[1724860744790,3.99514,2503.1,2502.9,2.4122]
[1724860745445,3.99514,2503.1,2502.8,7.3]
[1724860745799,0.399432,2503.5,2502.8,7.3]
[1724860745800,3.9953,2503.0,2502.8,7.3]
[1724860746082,3.99536,2502.9,2502.8,7.3]
[1724860746288,3.99513,2503.1,2502.8,7.3]
[1724860746457,3.995,2503.2,2502.8,7.3]
[1724860746458,3.99523,2503.0,2502.8,7.3]
[1724860746784,3.99536,2502.9,2502.8,7.3]
[1724860747082,3.99536,2502.9,2502.5,2.8148]
[1724860747388,3.99536,2502.9,2502.5,4.625513]
[1724860747887,3.99568,2502.7,2502.5,4.625513]
[1724860748086,3.99568,2502.7,2502.5,2.8148]
[1724860748286,3.9957,2502.7,2502.5,2.2648]
[1724860748850,3.99584,2502.6,2502.2,5.2648]
[1724860749045,6.44096,2503.1,2502.3,0.55]
[1724860749046,3.99562,2502.8,2502.3,0.55]
[1724860749251,3.99578,2502.7,2502.3,2.84687222]
[1724860750172,7.99065,2503.0,2502.4,2.2648]
[1724860750412,0.399432,2503.5,2502.6,6.26055]
[1724860750413,3.99505,2503.1,2502.6,6.26055]
[1724860750776,3.99505,2503.1,2502.7,0.55]
[1724860750984,3.99522,2503.0,2502.7,0.55]
[1724860751236,3.99505,2503.1,2502.7,0.55]
[1724860751435,3.99484,2503.3,2502.7,0.55]
[1724860751436,3.99493,2503.2,2502.7,5.27857091]
[1724860751604,3.99493,2503.2,2502.7,5.35847457]
[1724860751990,3.99493,2503.2,2502.7,5.35843457]
[1724860752326,3.99471,2503.4,2502.9,3.99527]
[1724860752625,3.99471,2503.4,2503.0,3.0294]
[1724860753531,3.99482,2503.3,2503.0,3.0294]
[1724860755080,3.9949,2503.2,2503.0,3.0294]
[1724860755275,3.99473,2503.3,2503.0,3.0294]
[1724860755813,3.99473,2503.3,2503.1,0.09196386]
[1724860756034,3.99488,2503.2,2503.1,0.09196386]
[1724860756182,7.98976,2503.2,2503.1,0.09196386]
[1724860756582,3.99507,2503.1,2502.7,2.4932]
[1724860756828,3.99507,2503.1,2502.8,0.55]
[1724860756980,7.98991,2503.2,2502.8,0.55]
[1724860757410,3.99488,2503.2,2502.8,0.55]
[1724860758537,3.99457,2503.4,2502.8,1.253885]
[1724860758745,3.0,2504.0,2502.8,1.253885]
[1724860758746,3.99409,2503.7,2503.0,3.99506]
[1724860758903,3.99409,2503.7,2503.1,0.62988949]
[1724860759101,3.99393,2503.8,2503.2,2.4142]
[1724860759318,3.99366,2504.0,2503.1,0.62988949]
[1724860759319,3.99366,2504.0,2503.4,6.40873]
[1724860759532,7.98736,2504.0,2503.5,4.54432]
[1724860759845,3.99366,2504.0,2503.5,4.54432]
[1724860760008,3.99366,2504.0,2503.5,5.639634]
[1724860760351,0.1228994,2504.3,2503.5,1.645314]
[1724860760515,4.1161494,2504.3,2503.7,2.3655]
[1724860760728,8.1093894,2504.3,2503.8,4.07378289]
[1724860760906,8.1093894,2504.3,2503.9,0.55]
[1724860761107,4.1161394,2504.3,2503.9,0.55]
[1724860761343,4.1161394,2504.3,2503.9,1.24893229]
[1724860761554,3.99354,2504.1,2503.7,2.3655]
[1724860762117,8.1093394,2504.3,2503.7,6.35955]
[1724860762304,0.1228994,2504.3,2504.0,3.9935]
[1724860762509,3.99339,2504.2,2503.8,2.3655]
[1724860762732,0.1228994,2504.3,2503.8,2.3655]
[1724860762733,4.1160794,2504.3,2503.8,2.3655]
[1724860763045,7.98711,2504.1,2503.8,2.3655]
[1724860763263,3.99354,2504.1,2503.9,0.09056381]
[1724860764011,4.1160994,2504.3,2504.0,0.09040639]
[1724860764209,3.99364,2504.0,2503.6,2.3655]
[1724860764517,3.99364,2504.0,2503.7,0.6406594]
[1724860764924,0.53450934,2504.3,2503.7,0.0906594]
[1724860764925,7.98784,2503.8,2503.7,0.0906594]
[1724860765148,8.786624,2503.8,2503.7,0.0906594]
[1724860765304,11.786624,2503.8,2503.7,0.0906594]
[1724860765521,3.99427,2503.6,2503.1,9.6655]
[1724860765723,3.99427,2503.6,2503.1,2.3655]
[1724860766336,3.99402,2503.8,2503.1,2.3655]
[1724860766684,3.99402,2503.8,2503.2,4.07464158]
[1724860766957,7.98806,2503.8,2503.3,2.306]
[1724860767170,3.99347,2504.1,2503.5,3.99437]
[1724860767368,3.99336,2504.2,2503.7,2.2725]
[1724860767522,3.99361,2504.0,2503.7,2.2725]
[1724860767723,7.98732,2504.0,2503.7,2.2725]
[1724860768270,3.99361,2504.0,2503.7,2.2725]
[1724860768719,3.99361,2504.0,2503.5,9.5725]
[1724860768919,7.98736,2504.0,2503.6,1.906697]
[1724860769327,3.99401,2503.8,2503.6,0.55]
[1724860769468,3.99408,2503.7,2503.5,9.5725]
[1724860770238,3.99385,2503.9,2503.5,10.52975]
[1724860770468,3.99385,2503.9,2503.6,0.090433]
[1724860771678,3.99394,2503.8,2503.6,0.090433]
[1724860771892,3.99408,2503.7,2503.6,0.090433]
[1724860772036,3.99426,2503.6,2503.3,9.6539]
[1724860772367,3.99426,2503.6,2503.3,2.3539]
[1724860772564,3.99408,2503.7,2503.4,0.23539]
[1724860772873,3.99397,2503.8,2503.4,0.23539]
[1724860773082,3.99418,2503.7,2503.4,0.23539]
[1724860773293,3.99436,2503.6,2503.3,2.3539]
[1724860773847,2.2532,2503.9,2503.0,9.6539]
[1724860774077,3.99474,2503.3,2503.0,9.6539]
[1724860774464,3.99452,2503.5,2503.0,13.64909]
[1724860774798,3.9942,2503.7,2503.1,3.99503]
[1724860775096,3.9942,2503.7,2503.2,1.764412]
[1724860775097,3.99433,2503.6,2503.2,1.764412]
[1724860775295,7.9893,2503.4,2503.0,9.6539]
[1724860775602,7.98875,2503.6,2503.0,13.64909]
[1724860775812,3.99444,2503.5,2503.1,0.96539]
[1724860777195,7.98898,2503.5,2503.1,0.96539]
[1724860777409,3.99444,2503.5,2503.0,6.34909]
[1724860777875,2.4696,2503.5,2502.8,3.99542]
[1724860778200,3.99543,2502.9,2502.4,2.3741]
[1724860778498,7.99093,2502.9,2502.4,2.3741]
[1724860778702,7.394064,2503.4,2502.5,0.637032]
[1724860779000,3.99632,2502.3,2502.1,2.3741]
[1724860779218,3.99604,2502.5,2501.8,2.3741]
[1724860779219,3.99696,2501.9,2501.8,2.3741]
[1724860779363,3.99727,2501.8,2501.2,2.3741]
[1724860779562,3.99696,2501.9,2501.3,3.99791]
[1724860780510,3.99706,2501.9,2501.2,2.3741]
[1724860780664,7.99417,2501.9,2501.3,4.635123]
[1724860781197,7.99412,2501.9,2501.3,4.635123]
[1724860781503,3.99705,2501.9,2501.3,8.633023]
[1724860781705,3.99705,2501.9,2501.4,1.1007123]
[1724860782301,3.9967,2502.1,2501.4,1.1007123]
[1724860782302,3.99675,2502.1,2501.4,1.1007123]
[1724860782516,3.99675,2502.1,2501.2,2.3741]
[1724860782664,3.99762,2501.5,2501.2,2.3741]
[1724860782863,3.99781,2501.4,2500.7,11.29878]
[1724860783067,3.99818,2501.2,2500.9,2.3741]
[1724860783389,3.99783,2501.4,2500.9,2.3741]
[1724860783717,3.99797,2501.3,2500.9,2.3741]
[1724860783867,3.99797,2501.3,2500.9,3.3814978]
[1724860784073,3.99783,2501.4,2500.9,3.3814978]
[1724860784345,3.9975,2501.6,2501.0,4.07834185]
[1724860784482,7.99503,2501.6,2501.0,4.07834185]
[1724860784687,3.9975,2501.6,2501.1,0.74598397]
[1724860785210,3.99722,2501.8,2501.1,0.82593902]
[1724860785367,3.99722,2501.8,2501.2,6.8352949]
[1724860785566,3.99722,2501.8,2501.3,0.07994947]
[1724860786004,3.99683,2502.0,2501.5,3.99754]
[1724860786214,3.99585,2502.6,2501.6,3.99729]
[1724860786427,3.99669,2502.1,2501.6,5.0111221]
[1724860786707,7.99319,2502.2,2501.7,0.09052755]
[1724860787017,3.99658,2502.2,2501.7,0.09052755]
[1724860787187,3.99705,2501.9,2501.7,0.09052755]
[1724860787513,3.99705,2501.9,2501.5,9.6549]
[1724860787717,7.9941,2501.9,2501.8,0.09030275]
[1724860787874,3.99705,2501.9,2501.5,9.6549]
[1724860788085,3.99705,2501.9,2501.8,0.09030275]
[1724860788285,7.99349,2502.1,2501.5,16.24877]
[1724860788538,3.99698,2501.9,2501.8,0.09113798]
[1724860788833,3.99744,2501.6,2501.5,7.3]
[1724860789719,7.419133,2502.4,2501.5,7.3]
[1724860789720,2.2807,2502.5,2501.6,2.3576]
[1724860789903,3.99681,2502.0,2501.6,2.3576]
[1724860790409,3.99682,2502.0,2501.6,2.3576]
[1724860790805,3.99698,2501.9,2501.6,2.3576]
[1724860791012,3.99682,2502.0,2501.6,3.51946]
[1724860791936,3.99728,2501.7,2501.4,2.3774]
[1724860792293,3.99728,2501.7,2501.4,4.57614]
[1724860792703,3.99698,2501.9,2501.4,8.57381]
[1724860793305,7.99356,2502.1,2501.4,8.57381]
[1724860793526,3.99684,2502.0,2501.5,3.768171]
[1724860794243,3.99641,2502.3,2501.7,2.3774]
[1724860794393,3.99641,2502.3,2501.8,0.79573441]
[1724860794742,3.9966,2502.2,2501.8,0.55]
[1724860795090,3.99665,2502.1,2501.8,0.55]
[1724860795841,3.99666,2502.1,2501.4,6.47749]
[1724860795991,3.99704,2501.9,2501.5,0.55]
[1724860796192,6.39612,2502.2,2501.4,2.4798]
[1724860796392,3.99737,2501.7,2501.4,2.4798]
[1724860796594,3.99762,2501.5,2501.3,19.61]
[1724860796828,3.99744,2501.6,2501.3,19.61]
[1724860797187,3.99672,2502.1,2501.5,6.3245]
[1724860797625,3.99672,2502.1,2501.6,3.99743]
[1724860798193,3.99672,2502.1,2501.5,6.3245]
[1724860798532,3.99643,2502.3,2501.7,3.99728]
[1724860798827,3.99648,2502.2,2501.7,3.99728]
[1724860799129,3.99685,2502.0,2501.5,2.327]
[1724860799544,3.99704,2501.9,2501.5,2.327]
[1724860800036,3.99713,2501.8,2501.5,2.327]
[1724860800778,3.99685,2502.0,2500.9,5.0058878]
[1724860801002,3.99685,2502.0,2501.0,3.55]
[1724860801137,3.23407,2502.4,2501.0,3.55]
[1724860801451,3.23407,2502.4,2501.0,0.55]
[1724860801611,3.0,2502.3,2500.9,0.55]
[1724860801812,0.323407,2502.3,2500.7,0.55]
[1724860802007,3.9972,2501.8,2501.3,3.99789]
[1724860802201,3.9972,2501.8,2501.3,6.48489]
[1724860802908,3.9972,2501.8,2501.3,6.48482]
[1724860803107,3.9972,2501.8,2501.3,10.48266]
[1724860803311,3.9972,2501.8,2501.3,5.046086]
[1724860803521,3.9972,2501.8,2500.7,0.55]
[1724860803522,3.99768,2501.5,2500.9,3.9985]
[1724860803823,3.99776,2501.4,2500.8,3.99863]
[1724860804207,6.36691,2501.4,2500.4,3.9992]
[1724860804414,3.99858,2500.9,2500.5,0.39992]
[1724860804610,3.99858,2500.9,2500.4,6.2898]
[1724860804950,3.99893,2500.7,2500.4,2.2906]
[1724860805151,3.99914,2500.6,2500.1,2.3756]
[1724860805355,3.99963,2500.3,2500.1,2.3756]
[1724860805658,3.99975,2500.2,2499.8,2.3756]
[1724860805956,3.99975,2500.2,2499.2,5.74626587]
[1724860805957,3.99838,2501.1,2500.2,2.3756]
[1724860806160,7.99732,2500.9,2500.3,4.07934678]
[1724860806310,3.99865,2500.9,2500.3,4.07934678]
[1724860806507,3.99833,2501.1,2500.5,6.37478]
[1724860806816,3.99833,2501.1,2500.5,2.3756]
[1724860806817,3.99857,2500.9,2500.5,2.3756]
[1724860807556,3.99857,2500.9,2499.8,5.74626587]
[1724860807557,0.399857,2500.9,2500.2,2.418]
[1724860807846,2.3987,2501.1,2499.9,2.418]
[1724860807847,3.99945,2500.4,2499.9,2.418]
[1724860808086,3.0,2501.0,2500.2,2.418]
[1724860808211,3.99925,2500.5,2499.7,4.00045]
[1724860808413,3.99952,2500.3,2499.7,4.00045]
[1724860808615,3.99957,2500.3,2499.6,6.41855]
[1724860808913,4.00032,2499.8,2499.6,2.418]
[1724860809128,4.00032,2499.8,2498.7,0.82553882]
[1724860809129,4.00068,2499.6,2499.3,2.3146]
[1724860809344,4.00032,2499.8,2499.3,2.3146]
[1724860809543,4.00032,2499.8,2499.3,2.3946148]
[1724860809856,3.99977,2500.2,2499.6,4.00053]
[1724860810154,3.9994,2500.4,2499.8,2.3631]
[1724860810318,3.9997,2500.2,2499.8,2.3631]
[1724860810519,4.00029,2499.9,2499.4,2.3631]
[1724860810739,4.00041,2499.8,2499.4,2.59941]
[1724860810972,4.0005,2499.7,2499.4,2.59941]
[1724860811276,8.00108,2499.7,2499.4,2.3631]
[1724860811634,4.0005,2499.7,2499.4,2.3631]
[1724860812176,6.32286,2500.3,2499.4,2.3631]
[1724860812382,4.0008,2499.5,2499.0,2.3149]
[1724860812584,3.932286,2500.2,2499.4,4.00092]
[1724860812869,4.00025,2499.9,2499.5,2.3766]
[1724860813570,3.99993,2500.1,2499.6,4.00051]
[1724860813778,7.99987,2500.1,2499.6,5.04631426]